Cogmind - Beta 15 @@@ ROGUE MODE // 2025.06.03 @ 22:39:33 Player: CL-1C0 Result: Self-destructed Performance ------------- Evolutions (7) 3500 Regions Visited (8) 1600 Robots Destroyed (21) 105 Value Destroyed (423) 423 Prototype IDs (5) 100 Alien Tech Used (0) 0 Bonus (470) 470 TOTAL SCORE: 6198 Bonus ------- Pacifist 470 Cogmind --------- Core Integrity 1300/1300 Matter 234/300 Energy 144/150 System Corruption 0% Temperature Cool (0) Movement Flying (27) Location -3/Research Parts ------- > --- POWER (1) -------- Micro Nuclear Core > --- PROPULSION (6) --- Improved Flight Unit Improved Cesium-ion Thruster Improved Cesium-ion Thruster Field Propulsion Drive Q-thruster > --- UTILITY (12) ----- Structural Scanner Machine Analyzer Enhanced Optical Array IFF Parser Transmission Jammer Hacking Suite Hacking Suite Hacking Suite Advanced System Shield Advanced System Shield > --- WEAPON (2) ------- Missile Launcher Power Maul > --- INVENTORY (5) ---- Advanced Heat Sink Improved Transmission Jammer Cloaking Device Long-range Missile Launcher Peak State ------------ > --- POWER ------------ Micro Nuclear Core > --- PROPULSION ------- Improved Flight Unit Improved Cesium-ion Thruster Improved Cesium-ion Thruster Field Propulsion Drive Q-thruster > --- UTILITY ---------- Structural Scanner Machine Analyzer Enhanced Optical Array IFF Parser Transmission Jammer Hacking Suite Hacking Suite Hacking Suite Advanced System Shield Advanced System Shield > --- WEAPON ----------- Missile Launcher Power Maul > --- INVENTORY -------- Advanced Heat Sink Improved Transmission Jammer Cloaking Device Long-range Missile Launcher [Rating: 79] Favorites ----------- Power Micro Nuclear Core Engine Improved Deuterium Engine Power Core Micro Nuclear Core Propulsion Improved Flight Unit Treads Light Treads Leg Aluminum Leg Hover Unit Improved Hover Unit Flight Unit Improved Flight Unit Utility Hacking Suite Device Structural Scanner Storage Small Storage Unit Processor Melee Analysis Suite Hackware Hacking Suite Weapon Axe Energy Gun Medium Laser Ballistic Gun Light Assault Rifle Launcher Missile Launcher Impact Weapon Power Maul Slashing Weapon Axe Build | -11 -10 -9 -8 -7 -6 -5 -4 -3 ------- Run | Yrd Mat Mat Mat Fac Fac Fac Fac Res Slots Evolved 14 | . . 2 2 2 2 2 2 2 Power . | . . . . . . . . . Propulsion 4 | . . 2 . 1 1 . . . Utility 10 | . . . 2 1 1 2 2 2 Weapon . | . . . . . . . . . Parts Attached 44 | 2 1 4 10 14 4 7 1 1 Power 2 | . . . . 2 . . . . Engine 1 | . . . . 1 . . . . Core 1 | . . . . 1 . . . . Reactor . | . . . . . . . . . Propulsion 19 | 2 . 3 4 6 1 2 . 1 Treads 2 | 2 . . . . . . . . Leg . | . . . . . . . . . Wheel . | . . . . . . . . . Hover 7 | . . 3 2 1 . 1 . . Flight 10 | . . . 2 5 1 1 . 1 Utility 18 | . 1 1 2 5 3 5 1 . Device 6 | . 1 . 2 1 1 1 . . Storage . | . . . . . . . . . Processor 5 | . . 1 . 1 1 2 . . Hackware 7 | . . . . 3 1 2 1 . Protection . | . . . . . . . . . Artifact . | . . . . . . . . . Weapon 5 | . . . 4 1 . . . . Energy Gun 1 | . . . 1 . . . . . Energy Cannon . | . . . . . . . . . Ballistic Gun . | . . . . . . . . . Ballistic Cannon . | . . . . . . . . . Launcher 2 | . . . 2 . . . . . Special Weapon . | . . . . . . . . . Impact Weapon 1 | . . . . 1 . . . . Slashing Weapon 1 | . . . 1 . . . . . Piercing Weapon . | . . . . . . . . . Special Melee Weapon . | . . . . . . . . . Unidentified Prototypes 5 | . . 1 2 1 . 1 . . Parts Lost 8 | . . . 4 1 1 . 2 . Power . | . . . . . . . . . Propulsion 5 | . . . 2 1 . . 2 . Utility 2 | . . . 1 . 1 . . . Weapon 1 | . . . 1 . . . . . Highest Loss Streak 2 | . . . 2 1 1 . 2 . To Critical Strikes . | . . . . . . . . . Average Backups 4 | 5 1 2 4 4 4 4 3 4 Power . | 1 . . . . . . . . Propulsion . | 3 . . 1 . . . . . Utility 2 | . 1 2 1 2 3 3 2 3 Weapon 1 | 1 . . 1 1 1 1 1 1 Tool/Special . | . . . . . . . . . Unused Backups 10 | . . 1 . 2 1 2 . 4 Power . | . . . . . . . . . Propulsion 1 | . . . . . 1 . . . Utility 5 | . . 1 . . . 1 . 3 Weapon 3 | . . . . 1 . 1 . 1 Tool/Special 1 | . . . . 1 . . . . Average Slot Usage (%) 80 | . 36 42 59 85 91 96 95 80 Engine 1 | . . . . 4 . . . . Core 2 | . . . . 1 6 5 5 4 Treads 2 | . 28 18 . . . . . . Hover 6 | . . 9 21 9 . 2 . . Flight 23 | . . . 11 28 33 31 27 19 Device 14 | . 8 11 10 15 20 15 14 14 Processor 6 | . . 3 9 9 1 4 10 9 Hackware 11 | . . . . 7 17 20 26 23 Launcher 2 | . . . 2 . 2 5 5 4 Impact Weapon 1 | . . . . . 3 1 5 4 Slashing Weapon 4 | . . . 3 7 6 3 . . Peak Build Rating 79 | 6 3 15 21 44 52 66 77 79 Average Rating 39 | 3 2 7 17 31 49 62 74 71 On Entrance 30 | 6 2 3 15 21 42 48 66 71 Naked Turns . | . . . . . . . . . Heaviest Build 18 | . 1 1 7 14 18 18 18 18 Greatest Support 36 | 3 3 23 23 35 36 34 34 32 Greatest Overweight (x) . | . . . . . . . . . Average Overweight (x) . | . . . . . . . . . Largest Inventory Capacity 8 | 8 5 5 5 5 5 5 5 5 Average Capacity 5 | 6 5 5 5 5 5 5 5 5 Most Carried 5 | 5 2 5 5 5 5 5 4 4 Average Carried 4 | 2 1 2 4 4 4 4 3 4 Final Capacity 5 | 5 5 5 5 5 5 5 5 5 Final Carried 5 | . 2 4 4 5 5 5 4 4 Class Distribution -------------------- 41% | Hacker-Sprinter 32% | Mutant 12% | Hacker-Ninja 12% | Sprinter Dominant Class ---------------- Mutant | -10/Materials Mutant | -9/Materials Mutant | -8/Materials Sprinter | -7/Factory Hacker-Sprinter | -6/Factory Hacker-Sprinter | -5/Factory Hacker-Ninja | -4/Factory Hacker-Ninja | -3/Research Resources | -11 -10 -9 -8 -7 -6 -5 -4 -3 ----------- Run | Yrd Mat Mat Mat Fac Fac Fac Fac Res Matter Collected 695 | 200 . . 196 140 20 139 . . Remotely . | . . . . . . . . . Salvage Created 511 | . . . 99 197 76 139 . . Parts 32 | . . . 4 17 7 4 . . Haulers Intercepted 3 | . . . . 2 . 1 . . Recyclers Shooed . | . . . . . . . . . Parts Field Recycled . | . . . . . . . . . Retrieved Matter . | . . . . . . . . . Parts Self-Destructed . | . . . . . . . . . Prevented . | . . . . . . . . . Kills | -11 -10 -9 -8 -7 -6 -5 -4 -3 ------- Run | Yrd Mat Mat Mat Fac Fac Fac Fac Res Combat Hostiles Destroyed 8 | . . . 4 . 4 . . . AOE 8 | . . . 4 . 4 . . . Classes Destroyed 6 | . . . 3 2 1 . . . Worker 3 | . . . 1 1 1 . . . Hauler 3 | . . . . 2 . 1 . . Recycler 1 | . . . 1 . . . . . Operator 5 | . . . . 3 1 1 . . Watcher 1 | . . . . . 1 . . . Swarmer 8 | . . . 4 . 4 . . . Best Kill Streak 6 | . . . 6 1 6 1 . . Combat Bots Only 4 | . . . 4 . 4 . . . Max Kills in Single Turn 3 | . . . 2 1 3 1 . . Gunslinging . | . . . . . . . . . Exploded 2 | . . . 2 . 2 . . . Melee . | . . . . . . . . . Uniques/NPCs Destroyed . | . . . . . . . . . Combat | -11 -10 -9 -8 -7 -6 -5 -4 -3 -------- Run | Yrd Mat Mat Mat Fac Fac Fac Fac Res Hostile Shots Fired 129 | . 9 10 55 22 10 3 20 . Missed 60 | . 4 4 22 11 5 2 12 . Hits 69 | . 5 6 33 11 5 1 8 . Projectile 69 | . 5 6 33 11 5 1 8 . Critical Strikes 1 | . . . 1 . . . . . Damage Taken 1078 | . 60 63 485 206 90 24 150 . Core 374 | . 10 41 169 77 18 . 59 . Absorbed by Shields . | . . . . . . . . . Core Remaining (%) 91 | 100 96 89 69 89 97 100 94 . Volleys Fired 10 | . . . 5 . 4 . 1 . Largest 1 | . . . 1 . 1 . 1 . Hottest 36 | . . . 36 . 36 . 36 . Shots Fired 10 | . . . 5 . 4 . 1 . Gun . | . . . . . . . . . Cannon . | . . . . . . . . . Launcher 10 | . . . 5 . 4 . 1 . Special . | . . . . . . . . . Kinetic . | . . . . . . . . . Thermal . | . . . . . . . . . Explosive 10 | . . . 5 . 4 . 1 . Electromagnetic . | . . . . . . . . . Robot Hit Streak 3 | . . . 1 . 3 . . . Robot Miss Streak 1 | . . . 1 . . . . . Penetration Max . | . . . . . . . . . Secondary Targets . | . . . . . . . . . Shots Hit Robots 23 | . . . 1 13 3 6 . . Core Hits 22 | . . . 8 3 9 1 1 . Critical Kills . | . . . . . . . . . Critical Parts Destroyed . | . . . . . . . . . Critical Strikes . | . . . . . . . . . Melee Attacks 65 | . . . 3 31 10 16 5 . Impact 9 | . . . . 1 1 2 5 . Slashing 56 | . . . 3 30 9 14 . . Piercing . | . . . . . . . . . Sneak Attacks 7 | . . . . 4 1 2 . . Combat Hostiles . | . . . . . . . . . Follow-up Attacks . | . . . . . . . . . Damage Inflicted 2436 | . 4 . 374 742 863 373 80 . Guns . | . . . . . . . . . Cannons . | . . . . . . . . . Explosions 1207 | . . . 374 . 753 . 80 . Melee 1225 | . . . . 742 110 373 . . Ramming 4 | . 4 . . . . . . . Kinetic . | . . . . . . . . . Thermal 461 | . . . . . 461 . . . Explosive 731 | . . . 359 . 292 . 80 . Electromagnetic 15 | . . . 15 . . . . . Impact . | . . . . . . . . . Slashing 1225 | . . . . 742 110 373 . . Piercing . | . . . . . . . . . Highest Corruption . | . . . . . . . . . Average Corruption . | . . . . . . . . . Corruption Purged . | . . . . . . . . . Corruption Blocked . | . . . . . . . . . Overload Shots . | . . . . . . . . . Overflow Damage 421 | . . . 84 145 79 113 . . Projectiles . | . . . . . . . . . Explosions 88 | . . . 84 . 4 . . . Melee 333 | . . . . 145 75 113 . . Knockbacks . | . . . . . . . . . Impact . | . . . . . . . . . Kinetic . | . . . . . . . . . Secondary . | . . . . . . . . . Self-Inflicted Damage . | . . . . . . . . . Shots . | . . . . . . . . . Rammed 1 | . 1 . . . . . . . Targets Rammed 1 | . 1 . . . . . . . Kicked . | . . . . . . . . . Crushed . | . . . . . . . . . Highest Temperature 18 | . . . 5 17 11 18 . . Average Temperature 8 | . . . 3 9 6 8 . . Received Heat Transfer 456 | . 33 36 261 90 18 9 9 . Siege Activations . | . . . . . . . . . Martial Activations . | . . . . . . . . . Shielding Activations . | . . . . . . . . . Robots Disrupted . | . . . . . . . . . Combat Hostiles . | . . . . . . . . . Robots Corrupted . | . . . . . . . . . Combat Hostiles . | . . . . . . . . . Parts Fried . | . . . . . . . . . Impact Corruptions . | . . . . . . . . . Robots Melted . | . . . . . . . . . Combat Hostiles . | . . . . . . . . . Parts Melted . | . . . . . . . . . Heat Transferred 250 | . . . . . 250 . . . Parts Sabotaged . | . . . . . . . . . Parts Stolen . | . . . . . . . . . Parts Stripped . | . . . . . . . . . Power Chain Reactions . | . . . . . . . . . Alert | -11 -10 -9 -8 -7 -6 -5 -4 -3 ------- Run | Yrd Mat Mat Mat Fac Fac Fac Fac Res Maximum Alert Level 1 | . . . 1 . 1 1 1 . Low Security (%) 79 | 100 100 100 97 100 60 29 72 100 Level 1 20 | . . . 2 . 39 70 27 . Level 2 . | . . . . . . . . . Level 3 . | . . . . . . . . . Level 4 . | . . . . . . . . . Level 5 . | . . . . . . . . . High Security . | . . . . . . . . . Max Security . | . . . . . . . . . Peak Influence 393 | . 9 . 205 82 393 262 227 113 Initial 180 | . . . . 75 12 180 123 113 Average 105 | . 2 . 95 40 151 231 171 106 Influence Increases 1092 | . 9 . 233 112 432 152 154 . Destroy 0b10 Robot/C 160 | . . . 80 . 80 . . . Destroy 0b10 Robot/NC 55 | . . . 10 30 10 5 . . Destroy Leader 28 | . . . 10 4 12 2 . . Successful Hack 113 | . 9 . 15 5 32 52 . . Disable Machine 225 | . . . 15 . 210 . . . Destroy Structure 181 | . . . 28 13 88 18 34 . Partial Spotted 90 | . . . 15 15 . 15 45 . Lose Combat Pursuer 240 | . . . 60 45 . 60 75 . Influence Decreases 999 | . 9 . 66 252 90 269 189 124 Entered New Map 529 | . . . . 92 15 189 129 104 Time Decay 410 | . 9 . 46 150 65 80 40 20 Lost Part 60 | . . . 20 10 10 . 20 . Squads Dispatched 17 | . 1 . 2 7 3 3 1 . Investigation 13 | . 1 . 2 5 3 1 1 . Extermination 2 | . . . . 1 . 1 . . Reinforcement 2 | . . . . 1 . 1 . . Assault . | . . . . . . . . . Garrison . | . . . . . . . . . Intercept . | . . . . . . . . . Searches Triggered . | . . . . . . . . . Construction Impeded . | . . . . . . . . . Haulers Reinforced 2 | . . . . 1 . 1 . . Active Scanning Responses . | . . . . . . . . . Cargo Convoy Interrupts . | . . . . . . . . . Stealth | -11 -10 -9 -8 -7 -6 -5 -4 -3 --------- Run | Yrd Mat Mat Mat Fac Fac Fac Fac Res Distress Signals 7 | . 1 1 1 . 1 2 1 . Communications Jammed 5 | . . . . . . 1 4 . Distress Signals 5 | . . . . . . 1 4 . Times Spotted 81 | . 9 4 20 10 11 15 10 2 Peak Tracking Total 11 | . 9 4 11 4 6 10 9 1 Tactical Retreats 6 | . . . 2 1 . 2 1 . Traps | -11 -10 -9 -8 -7 -6 -5 -4 -3 ------- Run | Yrd Mat Mat Mat Fac Fac Fac Fac Res Traps Triggered 1 | . . . . 1 . . . . Indirectly . | . . . . . . . . . Trap Hack Attempts . | . . . . . . . . . Triggered . | . . . . . . . . . Disarmed . | . . . . . . . . . Reprogrammed . | . . . . . . . . . Reused . | . . . . . . . . . Traps Extracted . | . . . . . . . . . Installed . | . . . . . . . . . Triggered . | . . . . . . . . . Machines | -11 -10 -9 -8 -7 -6 -5 -4 -3 ---------- Run | Yrd Mat Mat Mat Fac Fac Fac Fac Res Machines Disabled 15 | . . . 1 . 14 . . . Max in Single Turn 8 | . . . 1 . 8 . . . Machines Repaired . | . . . . . . . . . Machines Dismantled . | . . . . . . . . . Machines Sabotaged . | . . . . . . . . . Overloaded Fab Kills . | . . . . . . . . . Hacking | -11 -10 -9 -8 -7 -6 -5 -4 -3 --------- Run | Yrd Mat Mat Mat Fac Fac Fac Fac Res Machines Accessed 19 | . 1 . 2 6 6 3 1 . Terminals 18 | . 1 . 2 5 6 3 1 . Fabricators 1 | . . . . 1 . . . . Repair Stations . | . . . . . . . . . Recycling Units . | . . . . . . . . . Scanalyzers . | . . . . . . . . . Garrison Access . | . . . . . . . . . Total Hacks 64 | . 5 . 6 21 18 10 4 . Successful 16 | . 2 . 3 3 5 3 . . Failed 48 | . 3 . 3 18 13 7 4 . Catastrophic 17 | . . . . 7 4 4 2 . Database Lockouts . | . . . . . . . . . Manual 51 | . 2 . 6 14 16 9 4 . Terminals 63 | . 5 . 6 20 18 10 4 . Fabricators 1 | . . . . 1 . . . . Repair Stations . | . . . . . . . . . Recycling Units . | . . . . . . . . . Scanalyzers . | . . . . . . . . . Garrison Access . | . . . . . . . . . Terminal Hacks 8 | . 2 . 1 2 2 1 . . Level Access Points 5 | . 1 . 1 1 1 1 . . Terminal Index 2 | . . . . 1 1 . . . Hauler Manifests 1 | . 1 . . . . . . . Fabricator Hacks 1 | . . . . 1 . . . . Network Status 1 | . . . . 1 . . . . Repair Station Hacks . | . . . . . . . . . Recycling Unit Hacks . | . . . . . . . . . Scanalyzer . | . . . . . . . . . Garrison Access Hacks . | . . . . . . . . . Unauthorized Hacks 7 | . . . 2 . 3 2 . . Terminals 7 | . . . 2 . 3 2 . . Assimilate 2 | . . . . . 1 1 . . Botnet 2 | . . . . . 1 1 . . Operators 2 | . . . 1 . 1 . . . Search 1 | . . . 1 . . . . . Fabricators . | . . . . . . . . . Repair Stations . | . . . . . . . . . Recycling Units . | . . . . . . . . . Scanalyzers . | . . . . . . . . . Garrison Access . | . . . . . . . . . Data Cores Recovered . | . . . . . . . . . Used . | . . . . . . . . . Hacking Detections 17 | . 1 . 1 5 6 3 1 . Full Trace Events 12 | . 1 . 1 5 3 1 1 . Feedback Events . | . . . . . . . . . Feedback Blocked 1 | . . . . . 1 . . . Robot Schematics Acquired . | . . . . . . . . . Robots Built . | . . . . . . . . . Authchips . | . . . . . . . . . Time . | . . . . . . . . . Total Robot Build Rating . | . . . . . . . . . Part Schematics Acquired . | . . . . . . . . . Parts Built . | . . . . . . . . . Authchips . | . . . . . . . . . Time . | . . . . . . . . . Total Part Build Rating . | . . . . . . . . . Parts Repaired . | . . . . . . . . . Time . | . . . . . . . . . Parts Recycled . | . . . . . . . . . Recycled Matter . | . . . . . . . . . Retrieved Matter . | . . . . . . . . . Retrieved Components . | . . . . . . . . . Parts Scanalyzed . | . . . . . . . . . Part Schematics Acquired . | . . . . . . . . . Parts Damaged . | . . . . . . . . . Bothacking | -11 -10 -9 -8 -7 -6 -5 -4 -3 ------------ Run | Yrd Mat Mat Mat Fac Fac Fac Fac Res Used RIF Installer . | . . . . . . . . . Robots Hacked . | . . . . . . . . . Non-combat . | . . . . . . . . . Combat . | . . . . . . . . . Robot Hacks Applied . | . . . . . . . . . Relay Couplers Released . | . . . . . . . . . Fabnet Peak Effective % . | . . . . . . . . . Robots Rewired . | . . . . . . . . . Allies Hacked . | . . . . . . . . . Hacks Repelled . | . . . . . . . . . Allies | -11 -10 -9 -8 -7 -6 -5 -4 -3 -------- Run | Yrd Mat Mat Mat Fac Fac Fac Fac Res Total Allies 2 | . . . . . 1 1 . . Largest Group 1 | . . . . . 1 1 . . Highest-Rated Group 26 | . . . . . 26 26 . . Highest-Rated Ally 26 | . . . . . 26 26 . . Total Orders . | . . . . . . . . . Ally Attacks . | . . . . . . . . . Total Damage . | . . . . . . . . . Kills . | . . . . . . . . . Allies Corrupted . | . . . . . . . . . Allies Melted . | . . . . . . . . . Intel | -11 -10 -9 -8 -7 -6 -5 -4 -3 ------- Run | Yrd Mat Mat Mat Fac Fac Fac Fac Res Active Infowar (turns) 979 | . 32 70 131 306 143 170 83 44 Optics 158 | . . . . . . 31 83 44 IFF 222 | . . . . . 120 72 30 . Structural 977 | . 32 70 131 306 141 170 83 44 Machine Analysis 257 | . . . . . . 130 83 44 Jamming 40 | . . . . 1 . 30 9 . Robot Analysis Total . | . . . . . . . . . Derelict Logs Recovered . | . . . . . . . . . Drone Launches . | . . . . . . . . . Drone Recoveries . | . . . . . . . . . Exploration | -11 -10 -9 -8 -7 -6 -5 -4 -3 ------------- Run | Yrd Mat Mat Mat Fac Fac Fac Fac Res Turns Passed 995 | 5 43 70 131 306 143 170 83 44 Spaces Moved 2181 | 1 76 114 223 604 365 415 239 144 Core 153 | 1 76 76 . . . . . . Treads . | . . . . . . . . . Legs . | . . . . . . . . . Wheels . | . . . . . . . . . Hover 105 | . . 38 54 13 . . . . Flight 1923 | . . . 169 591 365 415 239 144 Fastest Speed 23 | 50 50 45 37 25 25 23 23 27 Average Speed 30 | 50 50 51 39 31 25 24 26 28 Slowest Speed 90 | 50 50 90 45 48 25 25 29 29 Overloaded Moves . | . . . . . . . . . Propulsion Burnouts . | . . . . . . . . . Robots Hopped 15 | . . . 1 6 3 1 4 . Potential Cave-ins . | . . . . . . . . . Cave-ins Triggered . | . . . . . . . . . Exploration Rate (%) 17 | 2 27 19 34 25 16 16 10 8 Regions Visited 8 Branch Regions . Pre-discovered Areas . | . . . . . . . . . Known Exits Taken 5 | . 1 . 1 1 1 1 . . Unknown Exits Taken 3 | 1 . 1 . . . . 1 . Scrap Searched . | . . . . . . . . . Spaces Dug 69 | . . . 16 13 9 9 22 . Terrain Destroyed 173 | . . . 25 13 104 9 22 . Melee 37 | . . . 3 13 7 9 5 . Projectile . | . . . . . . . . . AOE 136 | . . . 22 . 97 . 17 . Terrain Rammed . | . . . . . . . . . Walls Destroyed . | . . . . . . . . . Machines Disabled . | . . . . . . . . . Actions | -11 -10 -9 -8 -7 -6 -5 -4 -3 --------- Run | Yrd Mat Mat Mat Fac Fac Fac Fac Res Total 2352 | 6 79 124 252 659 391 453 243 145 Wait 18 | . . . 5 . 8 5 . . Move 2147 | . 75 113 220 593 359 412 231 144 Hop 11 | . . . 1 4 2 1 3 . Pick Up 23 | . 2 4 4 6 1 5 1 . Fast Attach 28 | . 1 3 5 10 3 5 . 1 Attach 15 | 2 . 1 5 3 1 1 2 . Detach 3 | . . . 2 . 1 . . . Swap 4 | . . . . 1 1 2 . . Drop 28 | 4 . 3 2 11 2 6 . . Fire 10 | . . . 5 . 4 . 1 . Melee 64 | . . . 3 31 9 16 5 . Ram . | . . . . . . . . . Kick . | . . . . . . . . . Crush 1 | . 1 . . . . . . . Escape Stasis . | . . . . . . . . . Rewire . | . . . . . . . . . Trap . | . . . . . . . . . Miscellaneous . | . . . . . . . . . Route ------- -11/Scrapyard -10/Materials (discovered 3 exits: *Mat x3) -9/Materials -8/Materials (discovered 3 exits: *Fac x3) -7/Factory (discovered 5 exits: *Fac x4 / [*Low]) -6/Factory (discovered 4 exits: *Fac x4) -5/Factory (discovered 5 exits: *Fac x4 / [*Upp]) -4/Factory -3/Research History --------- Turn | Location | Event 3 | -11/Scrapyard | Released all parts (6) 6 | -11/Scrapyard | Discovered new exit (range 0) 6 | -11/Scrapyard | Entered Materials 31 | -10/Materials | Identified exit to Materials 49 | -10/Materials | Entered another Materials area 49 | -9/Materials | Evolved 2 slots: Propulsion x2 115 | -9/Materials | Discovered new exit (range 9) 119 | -9/Materials | Entered another Materials area 119 | -8/Materials | Evolved 2 slots: Utility x2 206 | -8/Materials | Identified exit to Factory 250 | -8/Materials | Entered Factory 250 | -7/Factory | Evolved 2 slots: Propulsion x1, Utility x1 303 | -7/Factory | Build established: Mutant 517 | -7/Factory | Identified exit to Factory 556 | -7/Factory | Discovered new exit (range 16) 556 | -7/Factory | Entered another Factory area 556 | -6/Factory | Evolved 2 slots: Propulsion x1, Utility x1 679 | -6/Factory | Identified exit to Factory 699 | -6/Factory | Entered another Factory area 699 | -5/Factory | Evolved 2 slots: Utility x2 774 | -5/Factory | Build established: Hacker-Sprinter 778 | -5/Factory | Identified exit to Factory 846 | -5/Factory | Discovered new exit (range 13) 869 | -5/Factory | Entered another Factory area 869 | -4/Factory | Evolved 2 slots: Utility x2 949 | -4/Factory | Discovered new exit (range 13) 952 | -4/Factory | Entered Research 952 | -3/Research | Evolved 2 slots: Utility x2 996 | -3/Research | Self-destructed Last Messages --------------- 00933_ >> Machine Analyzer network decryption results: 00933_ Repair Station x3 00937_ >> Machine Analyzer network decryption results: 00937_ Terminal x1 00941_ Connecting with Terminal... 00941_ ALERT: Suspicious activity at Terminal F011. Dispatching Investigation squad. 00949_ EXIT=FOUND PARAMETERS=UTILITY+2 LOCATION=UNKNOWN GOAL=ESCAPE 00961_ O-32 Director: "IFF HANDSHAKE FAILED. SECURING TERMINAL." 00962_ ALERT: All DSF locations entering lockdown mode. 00963_ >> Machine Analyzer network decryption results: 00963_ Fabricator x1 00972_ >> Machine Analyzer network decryption results: 00972_ Scanalyzer x2 00984_ >> Machine Analyzer network decryption results: 00984_ Terminal x1 00994_ Acquired Q-thruster. Map ----- +----------------------------------------------------+ | ?????????????????????????????????????????????????? | | ?????????????????????????????????????????????????? | | ?????????????????????????????????????????????????? | | ?????????????????????????????????????????????????? | | ?????????????????????????????????????????????????? | | ?????????????????????????????????????????????????? | | ?????????????????????????????????????????????????? | | ?????????????????????????????????????????????????? | | ?????????????????????????????????????????????????? | | ?????????????????????????????????????????????????? | | ?????????????????????????????????????????????????? | | ?????????????????????????????????????????????????? | | ????????????""""?????????????????????????????????? | | ????????????""""?????????????????????????????????? | | ????????????""""?????????????????????????????????? | | ????????????""""???""????????????????????????????? | | ???????????????????""????????????????????????????? | | ???????????????????""????????????????????????????? | | ????????????????????T????????????????????????????? | | ???????????????????""????????????????????????????? | | ???? ??????????????""???##########???????????????? | | ?? ?????????????""???##########???????????????? | | ??????????????????## ##???????????????? | | ??? ##### ##???????????????? | | *]] ???####g########### ] ##???????????????? | | ]]] ????## @ ##???????????????? | | ]] ?? #### u ########## ##???????????????? | | #### ########## ##???????????????? | | / ##??????##########???????????????? | | #### ##??????##########???????????????? | | #### ##???????????????????????????????? | | /########### ##???????????????????????????????? | | ##???????????????????????????????? | | ##???????????????????????????????? | | ##???????????????????????????????? | | ##???????????????????????????????? | | ####+###########???????????????????????????????? | | # ######???????????????????????????????? | | # ##???????????????????????????????????? | | + """ !##???????????????????????????????????? | | # """" ##???????????????????????????????????? | | # """" ##???????????????????????????????????? | | # """ ##???????????????????????????????????? | | # ##???????????????????????????????????? | | # ! ##???????????????????????????????????? | | ##+#########???????????????????????????????????? | | #########???????????????????????????????????? | | ##??????????????????????????????????????????? | | ##??????????????????????????????????????????? | | ##??????????????????????????????????????????? | +----------------------------------------------------+ Best States ------------- Heat Dissipation 46 Energy Generation 16 Energy Capacity 290 Matter Stores 300 Matter Capacity 300 Sight Range 22 Terrain Scan Density 210 Jamming Range 12 Additional Mass Support 9 Evasion (%) 65 Melee Accuracy 8 Offensive Hacking 30 Defensive Hacking 28 Item Schematics ----------------- None Robot Schematics ------------------ None Fabricated ------------ Nothing Repaired ---------- Nothing Alien Tech Used ----------------- None Achievements -------------- None Challenges ------------ None Game ------ Seed BiometalArcsightPrototype Manual? 0 Play Time 00:26:49 Cumulative 520.0 hours Start 2025.06.03 @ 22:13:44 End 2025.06.03 @ 22:39:33 Sessions 1 Manual Loads 0 Difficulty Rogue Special Mode None Game No. 568 Rogue 568 Adventurer 0 Explorer 0 Win Type - Total 15 Types 9/0/5/1/0/0/0/0/0/0 Lore% 82 Gallery% 82 Achievement% 82 Wizard Run 0 Options --------- Layout 0 ASCII 0 Keyboard 0 Movement Numpad Keybinds 0 Fullscreen 1 Font 18/SmallcapsGlow Map View 76x50 Zoom Use 0% Tactical HUD 1 Map Filters NONE Filters NONE Steam 1 RUN: d0046af1-d890-4260-97e4-a7019d016d70